[Event "Kezmarok Chess Open 2022"]
[Site "Kezmarok"]
[Date "2022.09.25"]
[Round "3.15"]
[White "Velychko, Sofiya"]
[Black "Sekova, Olivia"]
[Result "0-1"]
[ECO "B54"]
[WhiteElo "1371"]
[BlackElo "1797"]
[Annotator "NA RC COMBH"]
[PlyCount "66"]
[EventDate "2022.09.24"]
[EventType "swiss"]
[EventCountry "SVK"]
[SourceTitle "playchess.com"]
[Source "ChessBase"]
[SourceQuality "1"]
[TimeControl "40/5400+30:1800+30"]

1. e4 {[%emt 0:00:02]} c5 {[%emt 0:00:41]} 2. Nf3 {[%emt 0:00:11]} d6 {[%emt 0:00:30]} 3. d4 {[%emt 0:00:19]} cxd4 {[%emt 0:00:20]} 4. Nxd4 {[%emt 0:00:10]} Nc6 {[%emt 0:00:15]} 5. Nc3 {[%emt 0:00:47]} e5 {[%emt 0:00:48]} 6. Nf3 {[%emt 0:00:25]} Be7 {[%emt 0:03:22]} 7. a4 {[%emt 0:01:06]} Be6 {[%emt 0:02:30]} 8. Be2 {[%emt 0:01:13]} h6 {[%emt 0:02:55]} 9. Nd5 {[%emt 0:04:01]} Nf6 {[%emt 0:01:57]} 10. Nxe7 {[%emt 0:03:04]} Qxe7 {[%emt 0:00:21]} 11. Bd3 {[%emt 0:03:04]} O-O {[%emt 0:04:51]} 12. O-O {[%emt 0:01:15]} Rfd8 {[%emt 0:05:54]} 13. Re1 {[%emt 0:01:54]} Rac8 {[%emt 0:02:42]} 14. h3 {[%emt 0:02:15]} Qc7 {[%emt 0:04:48]} 15. Be3 {[%emt 0:01:39]} d5 {[%emt 0:01:46]} 16. exd5 {[%emt 0:03:58]} Rxd5 {[%emt 0:01:59]} 17. c4 {[%emt 0:01:24]} Rdd8 {[%emt 0:04:15]} 18. Qb1 {[%emt 0:01:42]} Rxd3 {[%emt 0:01:25]} 19. Qxd3 {[%emt 0:01:24]} e4 {[%emt 0:00:21]} 20. Qe2 {[%emt 0:01:38]} exf3 {[%emt 0:00:19]} 21. Qxf3 {[%emt 0:00:41]} Bxc4 {[%emt 0:03:02]} 22. Bxh6 {[%emt 0:04:26]} Nd4 {[%emt 0:04:18]} 23. Qd1 {[%emt 0:11:14]} Rd8 {[%emt 0:01:16]} 24. Bd2 {[%emt 0:03:18]} Nb3 {[%emt 0:01:33]} 25. Rb1 {[%emt 0:02:56]} Rxd2 {[%emt 0:01:07]} 26. Qf3 {[%emt 0:00:29]} Bd5 {[%emt 0:05:55]} 27. Qe3 {[%emt 0:00:38]} Ne4 {[%emt 0:02:29]} 28. f3 {[%emt 0:01:08]} Qg3 {[%emt 0:00:58]} 29. Re2 {[%emt 0:01:07]} Rxe2 {[%emt 0:00:23]} 30. Qxe2 {[%emt 0:00:09]} Ned2 {[%emt 0:01:31]} 31. Qe8+ {[%emt 0:01:06]} Kh7 {[%emt 0:00:07]} 32. Kh1 {[%emt 0:00:50]} Nxf3 {[%emt 0:00:22]} 33. gxf3 {[%emt 0:00:13]} Bxf3# {[%emt 0:00:08]} 0-1

[Event "Kezmarok Chess Open 2022"]
[Site "Kezmarok"]
[Date "2022.09.25"]
[Round "3.16"]
[White "Hagara, Eduard"]
[Black "Mazak, Ryan"]
[Result "1-0"]
[ECO "A00"]
[WhiteElo "1734"]
[BlackElo "1590"]
[Annotator "NA RC COMBH"]
[PlyCount "92"]
[EventDate "2022.09.24"]
[EventType "swiss"]
[EventCountry "SVK"]
[SourceTitle "playchess.com"]
[Source "ChessBase"]
[SourceQuality "1"]
[TimeControl "40/5400+30:1800+30"]

1. a3 f5 2. b4 Nf6 3. Nc3 d5 4. e3 c6 5. f4 e6 6. Nf3 Bd6 7. Bb2 O-O 8. Ne2 Bd7 9. Ng3 Be8 10. c4 a5 11. c5 Be7 12. Ng5 Bf7 13. Be2 Ne4 14. Nxf7 Rxf7 15. d3 Bf6 16. Bxf6 Nxf6 17. O-O d4 18. e4 Nbd7 19. Bf3 fxe4 20. dxe4 e5 21. Nf5 b6 22. fxe5 Nxe5 23. Qxd4 Qxd4+ 24. Nxd4 bxc5 25. bxc5 Rd8 26. Nf5 Rfd7 27. Ra2 Rd2 28. Rf2 Nxf3+ 29. gxf3 Rxa2 30. Rxa2 Rd1+ 31. Kg2 Kf7 32. Rc2 Ra1 33. Rc3 Ra2+ 34. Kh3 h5 35. Nd4 g5 36. Nxc6 g4+ 37. Kg3 h4+ 38. Kf4 Rxh2 39. Ne5+ Ke6 40. Nxg4 Nxg4 41. Kxg4 Kd7 42. f4 Re2 43. Kxh4 Rxe4 44. Kg5 Kc6 45. f5 Re1 46. Kg6 Kd5 1-0

[Event "Kezmarok Chess Open 2022"]
[Site "Kezmarok"]
[Date "2022.09.25"]
[Round "3.17"]
[White "Rakovsky, Jakub"]
[Black "Kolek, Stefan"]
[Result "1-0"]
[ECO "A40"]
[WhiteElo "2012"]
[BlackElo "1524"]
[Annotator "NA RC"]
[PlyCount "73"]
[EventDate "2022.09.24"]
[EventType "swiss"]
[EventCountry "SVK"]
[SourceTitle "playchess.com"]
[Source "ChessBase"]
[SourceQuality "1"]
[TimeControl "40/5400+30:1800+30"]

1. d4 {[%emt 0:00:13]} e6 {[%emt 0:00:11]} 2. c4 {[%emt 0:00:10]} d5 {[%emt 0:00:16]} 3. Nf3 {[%emt 0:00:06]} Nf6 {[%emt 0:00:12]} 4. g3 {[%emt 0:00:18]} Bd7 5. Ne5 Bd6 6. Nxd7 Qxd7 {[%emt 0:06:13]} 7. Nc3 {[%emt 0:02:07]} c6 {[%emt 0:00:23]} 8. cxd5 {[%emt 0:02:28]} Nxd5 9. e4 Nb6 {[%emt 0:04:18]} 10. Bg2 {[%emt 0:03:49]} O-O {[%emt 0:02:42]} 11. O-O {[%emt 0:01:00]} Qd8 {[%emt 0:00:36]} 12. Qg4 {[%emt 0:03:13]} Re8 {[%emt 0:00:52]} 13. e5 {[%emt 0:00:22]} Bf8 {[%emt 0:00:06]} 14. Ne4 {[%emt 0:01:11]} Nd5 {[%emt 0:03:01]} 15. Bg5 {[%emt 0:04:10]} Qc8 {[%emt 0:00:27]} 16. Rae1 {[%emt 0:07:05]} Nd7 {[%emt 0:01:05]} 17. Nc3 {[%emt 0:12:20]} Kh8 {[%emt 0:00:54]} 18. Bxd5 {[%emt 0:06:37]} exd5 {[%emt 0:01:20]} 19. Qf3 {[%emt 0:03:56]} h6 {[%emt 0:01:49]} 20. Bd2 {[%emt 0:09:09]} f6 {[%emt 0:00:28]} 21. e6 {[%emt 0:01:04]} Nb6 {[%emt 0:01:45]} 22. Qg4 {[%emt 0:01:09]} Nc4 23. Bc1 {[%emt 0:00:39]} Be7 {[%emt 0:02:06]} 24. f4 {[%emt 0:01:28]} Nd6 {[%emt 0:00:54]} 25. f5 {[%emt 0:01:17]} Rg8 {[%emt 0:02:29]} 26. Qh3 {[%emt 0:01:11]} Kh7 {[%emt 0:00:45]} 27. Rf4 {[%emt 0:00:39]} g5 {[%emt 0:01:32]} 28. Rf3 {[%emt 0:10:24]} Qf8 {[%emt 0:01:14]} 29. g4 {[%emt 0:00:11]} Kg7 {[%emt 0:00:23]} 30. Qg2 {[%emt 0:03:45]} Rh8 31. h4 {[%emt 0:00:48]} h5 32. hxg5 h4 33. gxf6+ Bxf6 {[%emt 0:06:26]} 34. Be3 {[%emt 0:02:22]} Qe7 {[%emt 0:01:01]} 35. g5 {[%emt 0:00:14]} h3 36. gxf6+ Kxf6 37. Qg6# 1-0

[Event "Kezmarok Chess Open 2022"]
[Site "Kezmarok"]
[Date "2022.09.25"]
[Round "3.18"]
[White "Hanina, Marcel"]
[Black "Skapikova, Lubica"]
[Result "0-1"]
[ECO "A01"]
[WhiteElo "1411"]
[BlackElo "1823"]
[Annotator "NA RC COMBH"]
[PlyCount "52"]
[EventDate "2022.09.24"]
[EventType "swiss"]
[EventCountry "SVK"]
[SourceTitle "playchess.com"]
[Source "ChessBase"]
[SourceQuality "1"]
[TimeControl "40/5400+30:1800+30"]

1. b3 d5 2. Bb2 Bf5 3. Nf3 e6 4. e3 Nf6 5. Be2 Nbd7 6. O-O Bd6 7. d3 O-O 8. Nbd2 e5 9. Re1 e4 10. dxe4 dxe4 11. Nd4 Bg6 12. c4 a6 13. Qc1 c5 14. Nc2 Qc7 15. Nf1 Ne5 16. Ng3 Nd3 17. Bxd3 exd3 18. Na3 Ng4 19. Qd2 Rad8 20. Rad1 h5 21. h3 Nxf2 22. Kxf2 Bxg3+ 23. Kg1 Be4 24. Rf1 Rd6 25. Nb1 Rg6 26. Nc3 Bh2+ 0-1

[Event "Kezmarok Chess Open 2022"]
[Site "Kezmarok"]
[Date "2022.09.26"]
[Round "4.1"]
[White "Berezjuk, Sergej"]
[Black "Dubessay, Bastien"]
[Result "1/2-1/2"]
[ECO "C01"]
[WhiteElo "2382"]
[BlackElo "2259"]
[Annotator "ChessBase"]
[PlyCount "31"]
[EventDate "2022.09.24"]
[EventType "swiss"]
[EventCountry "SVK"]
[SourceTitle "playchess.com"]
[Source "ChessBase"]
[SourceQuality "1"]
[TimeControl "40/5400+30:1800+30"]

1. e4 {[%emt 0:00:05]} e6 {[%emt 0:00:10]} 2. d4 {[%emt 0:00:03]} d5 {[%emt 0:00:06]} 3. exd5 {[%emt 0:00:02]} exd5 {[%emt 0:00:08]} 4. Nf3 {[%emt 0:00:03]} Nf6 {[%emt 0:00:21]} 5. Bd3 {[%emt 0:00:07]} c5 {[%emt 0:00:47]} 6. O-O {[%emt 0:00:38]} c4 {[%emt 0:08:15]} 7. Re1+ {[%emt 0:00:05]} Be7 {[%emt 0:00:05]} 8. Bf1 {[%emt 0:00:04]} O-O {[%emt 0:00:05]} 9. b3 {[%emt 0:01:43]} cxb3 {[%emt 0:01:47]} 10. axb3 {[%emt 0:00:01]} Bg4 {[%emt 0:03:13]} 11. Be2 {[%emt 0:10:16]} Nc6 {[%emt 0:02:24]} 12. Ne5 {[%emt 0:03:42]} Bxe2 {[%emt 0:03:35]} 13. Rxe2 {[%emt 0:00:02]} Nxe5 {[%emt 0:14:49]} 14. dxe5 {[%emt 0:01:19]} Ne4 {[%emt 0:00:08]} 15. Be3 {[%emt 0:01:04]} Qc7 {[%emt 0:08:10]} 16. f3 {[%emt 0:18:56]} 1/2-1/2

[Event "Kezmarok Chess Open 2022"]
[Site "Kezmarok"]
[Date "2022.09.26"]
[Round "4.2"]
[White "Jablonicky, Martin"]
[Black "Demeter, Peter"]
[Result "1-0"]
[ECO "B33"]
[WhiteElo "2344"]
[BlackElo "2067"]
[Annotator "ChessBase"]
[PlyCount "59"]
[EventDate "2022.09.24"]
[EventType "swiss"]
[EventCountry "SVK"]
[SourceTitle "playchess.com"]
[Source "ChessBase"]
[SourceQuality "1"]
[TimeControl "40/5400+30:1800+30"]

1. Nf3 {[%emt 0:00:03]} c5 {[%emt 0:00:36]} 2. e4 {[%emt 0:00:06]} Nc6 {[%emt 0:00:04]} 3. d4 {[%emt 0:00:05]} cxd4 {[%emt 0:00:04]} 4. Nxd4 {[%emt 0:00:04]} Nf6 {[%emt 0:00:28]} 5. Nc3 {[%emt 0:00:04]} g6 {[%emt 0:02:03]} 6. Nxc6 {[%emt 0:00:07]} bxc6 {[%emt 0:00:15]} 7. e5 {[%emt 0:00:04]} Nd5 {[%emt 0:01:54]} 8. Nxd5 {[%emt 0:00:06]} cxd5 {[%emt 0:00:04]} 9. Qxd5 {[%emt 0:00:05]} Rb8 {[%emt 0:00:10]} 10. e6 {[%emt 0:00:05]} Bg7 {[%emt 0:04:29]} 11. exf7+ {[%emt 0:00:05]} Kf8 {[%emt 0:00:09]} 12. Bh6 {[%emt 0:00:03]} Bxh6 {[%emt 0:03:24]} 13. Qe5 {[%emt 0:03:20]} Bg7 {[%emt 0:00:28]} 14. Qxb8 {[%emt 0:00:04]} Qa5+ {[%emt 0:00:57]} 15. Kd1 {[%emt 0:00:04]} Qc5 {[%emt 0:01:12]} 16. Ba6 {[%emt 0:05:49]} Kxf7 {[%emt 0:09:03]} 17. Qf4+ {[%emt 0:00:03]} Ke8 {[%emt 0:00:16]} 18. Bxc8 {[%emt 0:00:09]} Qxc8 {[%emt 0:00:04]} 19. Re1 {[%emt 0:03:21]} e6 {[%emt 0:10:15]} 20. c3 {[%emt 0:00:28]} Rf8 {[%emt 0:01:07]} 21. Qa4 {[%emt 0:02:17]} Rxf2 {[%emt 0:07:54]} 22. Rxe6+ {[%emt 0:00:10]} Kf8 {[%emt 0:01:51]} 23. Re2 {[%emt 0:01:29]} Rf1+ {[%emt 0:00:45]} 24. Re1 {[%emt 0:00:44]} Rf2 {[%emt 0:03:10]} 25. Qxa7 {[%emt 0:05:22]} Rxg2 {[%emt 0:00:25]} 26. Rc1 {[%emt 0:01:46]} Qc6 {[%emt 0:03:44]} 27. Qb8+ {[%emt 0:00:06]} Kf7 {[%emt 0:00:06]} 28. Qe8+ {[%emt 0:00:04]} Kf6 {[%emt 0:00:03]} 29. Qe5+ {[%emt 0:00:06]} Kf7 {[%emt 0:00:13]} 30. Rf1+ {[%emt 0:00:08]} 1-0

[Event "Kezmarok Chess Open 2022"]
[Site "Kezmarok"]
[Date "2022.09.26"]
[Round "4.3"]
[White "Sosovickova, Jana"]
[Black "Hagarova, Zuzana"]
[Result "0-1"]
[ECO "C01"]
[WhiteElo "2039"]
[BlackElo "2287"]
[Annotator "TA"]
[PlyCount "60"]
[EventDate "2022.09.24"]
[EventType "swiss"]
[EventCountry "SVK"]
[SourceTitle "playchess.com"]
[Source "ChessBase"]
[SourceQuality "1"]
[TimeControl "40/5400+30:1800+30"]

{[%evp 11,60,28,34,4,35,-12,-10,-18,-16,-33,-11,-66,-47,-52,-38,-35,-26,-95,-91,-67,-89,-89,-50,-99,-114,-133,-81,-144,-108,-112,-85,-106,-68,-94,-91,-162,-51,-481,-470,-463,-403,-509,-492,-508,-501,-889,-879,-1355,-1272,-29994,-6632]} 1. e4 {[%emt 0:00:04]} e6 {[%emt 0:00:22]} 2. d4 {[%emt 0:00:06]} d5 {[%emt 0:00:05]} 3. exd5 {[%emt 0:00:03]} exd5 {[%emt 0:00:06]} 4. Nf3 {[%emt 0:00:03]} Bd6 {[%emt 0:01:19]} 5. Bd3 {[%emt 0:01:22]} Bg4 {[%emt 0:03:19]} 6. h3 {[%emt 0:03:47]} Bh5 {[%emt 0:01:06]} 7. Qe2+ {[%emt 0:04:45] C01: French: Exchange Variation.} Ne7 {[%emt 0:01:48]} 8. O-O {[%emt 0:01:03]} (8. Nc3 $14) 8... Nbc6 $11 {[%emt 0:01:24]} 9. c3 {[%emt 0:00:33] The position is equal.} Qd7 {[%emt 0:02:24]} 10. Nbd2 {[%emt 0:01:23]} O-O-O {[%emt 0:02:01]} 11. b4 {[%emt 0:01:57] [#]} (11. Re1 $11) 11... Rde8 $146 {[%emt 0:01:55] White must now prevent ...Ng6.} ({Predecessor:} 11... Ng6 12. Bxg6 hxg6 13. Qd3 Qf5 14. Qxf5+ gxf5 15. Re1 f6 16. Nh2 Rde8 17. Bb2 g5 {0-1 (51) Karvinen,K (2100)-Galchenko,M (2418) Jyvaskyla 2020}) 12. Qd1 {[%emt 0:04:41]} f6 {[%emt 0:08:19]} 13. b5 {[%emt 0:04:36]} Nd8 {[%emt 0:04:35]} 14. Qa4 {[%emt 0:01:31]} (14. c4 $11 {remains equal.}) 14... Kb8 $17 {[%emt 0:00:41]} 15. c4 {[%emt 0:11:13]} dxc4 {[%emt 0:03:55]} 16. Bxc4 {[%emt 0:02:51]} Ng6 {[%emt 0:03:53]} 17. Kh1 {[%emt 0:10:41]} (17. Ba3 $15 {is superior.}) 17... Nf4 {[%emt 0:03:08]} 18. Ng1 {[%emt 0:01:23]} g5 {[%emt 0:01:00]} (18... Qf5 $142 $1 {[%cal Of4g2]} 19. Qb3 Nde6 20. Bxe6 Qxe6) 19. Qb3 {[%emt 0:06:56]} ({Better is} 19. Bb3) 19... Bg6 {[%emt 0:06:43]} 20. a4 {[%emt 0:01:32]} h5 {[%emt 0:13:33][%cal Bh7h5,Bh5h4][%mdl 32]} 21. a5 {[%emt 0:07:42]} h4 $40 {[%emt 0:16:38][%mdl 128] White needs to defend precisely.} 22. b6 $1 {[%emt 0:03:51] [#]} g4 $1 {[%emt 0:07:53]} 23. bxa7+ {[%emt 0:08:24]} (23. Ba3 $17) 23... Ka8 {[%emt 0:04:45]} ({Black should play} 23... Kxa7 $19 {Threatens to win with ...gxh3.} 24. d5 gxh3 25. Nxh3 Nxh3 26. Qxh3 Qxh3+ 27. gxh3 Nf7) 24. Bb2 $2 {[%emt 0:09:18][%mdl 8192] [#] Now White is beyond hope.} ({White should try} 24. Bb5 $15 Qg7 25. hxg4 (25. Bxe8 $2 Bxe8 26. hxg4 Qxg4 $19)) 24... gxh3 $1 $19 {[%emt 0:02:02] Active counter play!} 25. Nxh3 {[%emt 0:02:01]} Qg4 {[%emt 0:04:10][%csl Gf4][%cal Rg4g2]} 26. Nxf4 {[%emt 0:03:17]} Qxf4 {[%emt 0:00:48][%csl Gd6][%cal Rf4h2]} 27. Nf3 {[%emt 0:00:01] Inhibits Qh2+.} Be4 {[%emt 0:00:57] ( -> ...Bxf3)} 28. Bc1 {[%emt 0:00:09]} (28. Ba3 $142 h3 29. g3 Qxf3+ 30. Qxf3 Bxf3+ 31. Kh2) 28... Qf5 {[%emt 0:01:23][%cal Oh8g8]} 29. Be2 {[%emt 0:05:31]} Bd5 {[%emt 0:01:04]} 30. Bd3 {[%emt 0:02:20]} Qxf3 {Weighted Error Value: White=1.08/Black=0.21 (precise)} (30... Qh3+ $142 31. gxh3 Bxf3+ 32. Kg1 Rhg8+ 33. Qxg8 Rxg8+ 34. Bg6 Rxg6+ 35. Bg5 Rxg5#) 0-1

[Event "Kezmarok Chess Open 2022"]
[Site "Kezmarok"]
[Date "2022.09.26"]
[Round "4.4"]
[White "Bochnickova, Simona"]
[Black "Manik, Mikulas"]
[Result "0-1"]
[ECO "B51"]
[WhiteElo "1903"]
[BlackElo "2362"]
[Annotator "TA"]
[PlyCount "138"]
[EventDate "2022.09.24"]
[EventType "swiss"]
[EventCountry "SVK"]
[SourceTitle "playchess.com"]
[Source "ChessBase"]
[SourceQuality "1"]
[TimeControl "40/5400+30:1800+30"]

{[%evp 9,138,5,34,32,28,26,27,30,38,47,43,36,60,32,46,36,62,59,94,49,60,54,66,39,78,64,96,91,84,94,100,85,95,99,93,105,122,53,64,-31,-18,-7,-25,-28,12,16,12,10,20,18,14,13,14,0,0,0,0,0,0,0,0,0,0,0,0,-10,8,0,0,0,0,-8,-2,-8,0,0,0,0,0,-18,-18,-20,-20,-36,-36,-37,-37,-37,-37,-128,-82,-99,-70,-67,-61,-128,-128,-128,-128,-128,-128,-128,-123,-123,-123,-210,-123,-123,-123,-129,-129,-137,-137,-162,-162,-3553,-2972,-29954,-29956,-1400,-204,-29967,-29968,-29956,-29965,-29964,-29966,-29968,-29969,-5817,-5097]} 1. e4 {[%emt 0:00:57]} c5 {[%emt 0:00:03]} 2. Nf3 {[%emt 0:00:07]} d6 {[%emt 0:00:03]} 3. Bb5+ {[%emt 0:00:07]} Nd7 {[%emt 0:00:04]} 4. a4 {[%emt 0:00:07][%cal Ba2a4,Ba4a5][%mdl 32]} Ngf6 {[%emt 0:00:39]} 5. Nc3 {[%emt 0:00:09]} g6 {[%emt 0:01:07]} 6. O-O {[%emt 0:00:10] B51: Sicilian: Moscow Variation (3 Bb5+) without 3...Bd7.} Bg7 {[%emt 0:00:03]} 7. a5 {[%emt 0:00:06]} a6 {[%emt 0:04:12]} 8. Be2 {[%emt 0:00:11] White has an edge.} O-O {[%emt 0:02:27]} 9. d3 {[%emt 0:00:06]} b5 {[%emt 0:00:55]} 10. axb6 $1 {[%emt 0:00:07]} Qxb6 {[%emt 0:00:01] [#]} 11. Kh1 $146 {[%emt 0:00:11]} ({Predecessor:} 11. Nd2 Qc7 12. Nc4 Rb8 13. Be3 Nb6 14. Nxb6 Rxb6 15. Qc1 Qb8 16. e5 dxe5 17. Na4 {½-½ (25) Huschenbeth,N (2608)-Areshchenko,A (2690) Legnica 2021}) 11... Bb7 {[%emt 0:00:38][%cal Oc5c4]} 12. Nd2 {[%emt 0:00:07]} d5 {[%emt 0:01:42]} 13. f4 {[%emt 0:06:51]} e6 {[%emt 0:06:53]} 14. Qe1 {[%emt 0:07:57]} Nb8 {[%emt 0:12:15][%cal Bd7b8,Bb8c6,Bc6b4][%mdl 32]} 15. Qf2 {[%emt 0:10:01]} Qc7 {[%emt 0:02:58]} 16. Bf3 {[%emt 0:05:01]} (16. e5 $5 {[%cal Re5f6]}) 16... dxe4 {[%emt 0:16:51]} 17. dxe4 {[%emt 0:06:42]} (17. Ndxe4 Nbd7 $11) 17... Nc6 {[%emt 0:00:24]} 18. e5 {[%emt 0:06:32]} Nd7 {[%emt 0:00:55]} 19. Nb3 {[%emt 0:00:08] Inhibits Nd4.} Nb4 {[%emt 0:01:10]} 20. Bxb7 {[%emt 0:04:20]} Qxb7 {[%emt 0:00:07]} 21. Be3 {[%emt 0:00:19]} c4 {[%emt 0:04:40]} 22. Na5 {[%emt 0:05:09][%csl LRb7,LRc4]} Qc7 {[%emt 0:00:04]} 23. Rfd1 {[%emt 0:00:16]} (23. Ne4 $16) 23... f6 $1 $14 {[%emt 0:03:00]} 24. exf6 {[%emt 0:05:17]} (24. Ra4 $14 fxe5 25. Rxb4 Qxa5 26. Rb7 (26. Rxc4 exf4 27. Rxf4 Nf6 $11)) 24... Nxf6 $15 {[%emt 0:04:06]} 25. Qe2 {[%emt 0:04:45]} Nfd5 {[%emt 0:03:05]} 26. Bd2 {[%emt 0:10:39]} ({Don't blunder} 26. Qxc4 $2 Qxc4 27. Nxc4 Bxc3 28. bxc3 Nxc2 $19) ({Much worse is} 26. Nxc4 Bxc3 27. bxc3 Nxc3 $17) 26... Nxc2 {[%emt 0:00:08] [#] Threatens to win with ...Nxc3.} (26... Nxf4 {is more complex.} 27. Bxf4 Qxf4 28. Nxc4 Nxc2 29. Rf1 Qh4) 27. Qxe6+ {[%emt 0:00:24]} Qf7 {[%emt 0:00:02]} 28. Qxd5 {[%emt 0:02:00]} Qxd5 {[%emt 0:00:38]} 29. Nxd5 {[%emt 0:00:06] Pair of Knights!} Nxa1 {[%emt 0:00:10]} 30. Rxa1 {[%emt 0:00:29]} Bxb2 {[%emt 0:04:48]} 31. Rb1 {[%emt 0:01:10]} c3 {[%emt 0:00:08]} 32. Nxc3 {[%emt 0:01:40]} Bxc3 {[%emt 0:00:16]} 33. Bxc3 {[%emt 0:00:07]} Rxf4 {[%emt 0:00:12]} 34. h3 {[%emt 0:06:26]} Rc8 {[%emt 0:04:03]} 35. Bd2 {[%emt 0:03:15]} Rd4 {[%emt 0:01:58]} 36. Rb2 {[%emt 0:01:32]} Rd5 {[%emt 0:01:59]} 37. Kg1 {[%emt 0:02:40]} Rb5 {[%emt 0:01:53]} 38. Rxb5 {[%emt 0:01:09]} axb5 {[%emt 0:00:03]} 39. Kf2 {[%emt 0:00:11]} Kf7 {[%emt 0:01:05]} 40. Ke3 {[%emt 0:00:33]} Ke6 {[%emt 0:00:55]} 41. Ke4 {[%emt 0:32:27]} Rc2 {[%emt 0:34:34]} 42. Nb3 {[%emt 0:00:06] Black must now prevent Nd4+.} Rb2 {[%emt 0:00:36]} 43. Nd4+ {[%emt 0:02:13]} Kd6 {[%emt 0:00:20]} 44. Nf3 {[%emt 0:06:40]} Kc5 {[%emt 0:00:41][%mdl 1024] Black has compensation.} 45. Kd3 {[%emt 0:00:06]} b4 {[%emt 0:02:36]} 46. Be3+ {[%emt 0:00:00]} Kb5 {[%emt 0:00:00]} 47. Nd2 {[%emt 0:00:00]} Ra2 {[%emt 0:00:00]} 48. Bf4 {[%emt 0:00:00]} Ka4 {[%emt 0:00:00]} 49. Ke4 {[%emt 0:00:00]} (49. Be5 $15) 49... Ra1 {[%emt 0:00:00]} (49... b3 $142 {[%cal Oa2d2]} 50. Kd3 Rc2) 50. g3 $17 {[%emt 0:00:00]} Rh1 {[%emt 0:00:00]} 51. h4 {[%emt 0:00:00]} b3 {[%emt 0:00:00] And now ...b2 would win.} 52. Nxb3 {[%emt 0:00:00]} Kxb3 $15 {[%emt 0:00:00][%mdl 4096] Endgame KR-KB} 53. Ke5 {[%emt 0:00:00]} Re1+ {[%emt 0:00:00]} 54. Kf6 {[%emt 0:00:00]} Kc4 {[%emt 0:00:00]} 55. Kg7 {[%emt 0:00:00]} Re7+ {[%emt 0:00:00]} 56. Kf6 {[%emt 0:00:00]} Rb7 {[%emt 0:00:00]} 57. Ke5 {[%emt 0:01:30]} (57. Kg5 $17) 57... Kd3 {[%emt 0:00:00]} ({Black should try} 57... Rf7 $19 {...Kd3 is the strong threat.} 58. g4 Kd3) 58. Kf6 $17 {[%emt 0:02:11]} Ke4 {[%emt 0:00:00]} 59. Kg5 {[%emt 0:03:15]} Kd5 {[%emt 0:00:00]} 60. Kh6 {[%emt 0:00:38]} Ke6 {[%emt 0:00:00]} 61. Kg5 {[%emt 0:00:13]} Kf7 {[%emt 0:00:00]} 62. Kg4 $2 {[%emt 0:00:21]} (62. Kh6) 62... Rb5 $19 {[%emt 0:00:00] Hoping for ...h5+.} 63. Be3 {[%emt 0:02:06]} h5+ {[%emt 0:00:00]} 64. Kf3 {[%emt 0:00:18]} Ke6 $2 {[%emt 0:00:00]} (64... Kf6 {( -> ...Kf5)} 65. g4 hxg4+ 66. Kxg4 Rb4+ 67. Kf3 Kf5) 65. Bf4 $2 {[%emt 0:00:18] [#]} (65. g4 $19) 65... Kf5 {[%emt 0:00:00]} 66. Ke3 {[%emt 0:00:16]} Rb3+ {[%emt 0:00:00]} 67. Kf2 {[%emt 0:00:44]} Kg4 {[%emt 0:00:00]} 68. Kg2 {[%emt 0:00:46]} Rb2+ {[%emt 0:00:00]} 69. Kg1 {[%emt 0:00:32]} Kf3 {[%emt 0:00:00] Weighted Error Value: White=0.12 (very precise) /Black=0.08 (flawless)} 0-1

[Event "Kezmarok Chess Open 2022"]
[Site "Kezmarok"]
[Date "2022.09.26"]
[Round "4.5"]
[White "Elias, David"]
[Black "Bazakutsa, Svyatoslav"]
[Result "0-1"]
[ECO "E92"]
[WhiteElo "1988"]
[BlackElo "2182"]
[Annotator "TA"]
[PlyCount "63"]
[EventDate "2022.09.24"]
[EventType "swiss"]
[EventCountry "SVK"]
[SourceTitle "playchess.com"]
[Source "ChessBase"]
[SourceQuality "1"]
[TimeControl "40/5400+30:1800+30"]

{[%evp 16,63,22,22,29,22,25,-12,60,14,24,27,4,11,26,2,7,8,6,8,10,-50,-23,0,-10,0,0,0,-61,-339,-134,-552,-494,-889,-887,-1743,-1743,-1572,-1550,-29995,-29981,-29981,-29982,-29982,-29983,-29982,-29983,-29976,-29979,-29977]} 1. d4 Nf6 2. c4 g6 3. Nc3 Bg7 4. e4 d6 5. Nf3 O-O 6. Be2 e5 7. d5 a5 8. Bg5 h6 9. Be3 Ng4 {E92: King's Indian: Classical: 6 Be2 e5: 7 dxe5, 7 Be3 and Petrosian System without 7...Nbd7.} 10. Bd2 f5 11. exf5 gxf5 (11... Bxf5 $11 12. g3 (12. h3 Nxf2 13. Kxf2 e4 $17) 12... e4) 12. h3 (12. g3 $14) 12... Nf6 $11 13. Qc1 f4 14. g3 e4 $1 15. Nh4 e3 $1 16. fxe3 fxg3 {[%cal Of6e4] [#] ...Ne4! is the strong threat.} 17. Ng6 Re8 18. Qc2 (18. Rg1 $11) 18... Na6 $1 $36 {[%mdl 2048] Threatens to win with ...Nb4. Black has some pressure.} (18... g2 19. Rg1 $16) 19. Rg1 Nb4 20. Qb1 Ne4 21. Nxe4 Bf5 22. Bxb4 $4 {[%mdl 8192] [#]} ({Of course not} 22. Rxg3 Bxe4 23. Qc1 Nc2+ 24. Kf2 Nxa1 $17) (22. Nxg3 $15 Bxb1 23. Rxb1) 22... Bxg6 $146 ({Stronger than} 22... axb4 23. Rxg3 Bxe4 24. Bd3 Bxd3 25. Qxd3 $17) (22... Bxe4 $19 23. Bd3 Qg5) ({Predecessor:} 22... Bxe4 23. Bd3 Qf6 24. Rxg3 Bxg6 25. Bc3 Qh4 26. Kf2 Rxe3 27. Kxe3 Qxg3+ 28. Kd2 Qf2+ 29. Kd1 Bxc3 {0-1 (29) Hansen,T (2495)-Forcen Esteban,D (2539) Sitges 2015}) 23. Bd2 $2 {[%mdl 8192] Loses the game.} (23. Rxg3 $17 Bxe4 24. Rxg7+ Kxg7 25. Bc3+ Kh7 26. Bd3 Qh4+ 27. Ke2) 23... Qh4 24. Bd3 (24. Kd1 $142 Bxe4 25. Bd3 Qxh3 26. Bxe4 Qg4+ 27. Kc2 Rxe4 28. Qe1) 24... Rxe4 $19 25. Qc2 g2+ 26. Kd1 Qf2 27. Bxe4 Qxg1+ {Black mates.} 28. Be1 Bxe4 29. Qxe4 {[#]} Qxe1+ $3 {[%mdl 512]} 30. Kxe1 g1=Q+ 31. Ke2 Qxa1 32. Qe6+ {Weighted Error Value: White=1.11/Black=0.20 (precise)} 0-1